Cogmind - Beta 14 @@@ ROGUE MODE // 2025.04.26 @ 17:19:19 Player: Domo Result: Destroyed by G-47 Trooper with Particle Gun Performance ------------- Evolutions (2) 1000 Regions Visited (3) 600 Robots Destroyed (28) 140 Value Destroyed (520) 520 Prototype IDs (0) 0 Alien Tech Used (0) 0 Bonus (0) 0 TOTAL SCORE: 2260 Bonus ------- None Cogmind --------- Core Integrity 0/550 Matter 273/300 Energy 100/100 System Corruption 0% Temperature Cool (9) Movement Core (50) Location -8/Materials Parts ------- > --- POWER (1) -------- (None) > --- PROPULSION (4) --- (None) > --- UTILITY (3) ------ (None) > --- WEAPON (3) ------- (None) > --- INVENTORY (5) ---- Ion Engine Medium Storage Unit Peak State ------------ > --- POWER ------------ Ion Engine > --- PROPULSION ------- Aluminum Leg > --- UTILITY ---------- Medium Storage Unit Structural Scanner Improved Light Armor Plating > --- WEAPON ----------- Light Assault Rifle Light Assault Rifle Light Assault Rifle > --- INVENTORY -------- Ion Engine Ion Engine [Rating: 10] Favorites ----------- Power Ion Engine Engine Ion Engine Propulsion Aluminum Leg Leg Aluminum Leg Utility Small Storage Unit Device Structural Scanner Storage Small Storage Unit Protection Improved Light Armor Plating Weapon Assault Rifle Energy Gun Small Laser Ballistic Gun Assault Rifle Build | -11 -10 -9 -8 ------- Run | Yrd Mat Mat Mat Slots Evolved 4 | . . 2 2 Power . | . . . . Propulsion 2 | . . 1 1 Utility 1 | . . 1 . Weapon 1 | . . . 1 Parts Attached 24 | 6 6 8 4 Power 4 | 1 1 1 1 Engine 4 | 1 1 1 1 Core . | . . . . Reactor . | . . . . Propulsion 7 | 2 2 3 . Treads . | . . . . Leg 7 | 2 2 3 . Wheel . | . . . . Hover . | . . . . Flight . | . . . . Utility 4 | 1 1 1 1 Device 1 | . 1 . . Storage 2 | 1 . 1 . Processor . | . . . . Hackware . | . . . . Protection 1 | . . . 1 Artifact . | . . . . Weapon 9 | 2 2 3 2 Energy Gun 2 | 1 1 . . Energy Cannon . | . . . . Ballistic Gun 7 | 1 1 3 2 Ballistic Cannon . | . . . . Launcher . | . . . . Special Weapon . | . . . . Impact Weapon . | . . . . Slashing Weapon . | . . . . Piercing Weapon . | . . . . Special Melee Weapon . | . . . . Unidentified Prototypes . | . . . . Parts Lost 16 | . 1 7 8 Power 4 | . 1 1 2 Propulsion 4 | . . 3 1 Utility 2 | . . . 2 Weapon 6 | . . 3 3 Highest Loss Streak 8 | . 1 5 8 To Critical Strikes 1 | . . 1 . Average Slot Usage (%) 90 | . 97 92 59 Engine 12 | . 13 11 8 Leg 24 | . 28 26 6 Device 11 | . 11 11 8 Storage 16 | . 14 21 9 Energy Gun 7 | . 13 . . Ballistic Gun 17 | . 14 20 22 Peak Build Rating 10 | 6 7 9 10 Average Rating 7 | 4 6 8 7 On Entrance 4 | . 6 7 6 Naked Turns 17 | . . . 17 Heaviest Build 24 | 11 14 24 24 Greatest Support 30 | 20 20 30 10 Greatest Overweight (x) 7 | . . 7 2 Average Overweight (x) . | . . . 1 Largest Inventory Capacity 10 | 8 8 10 10 Average Capacity 8 | 6 8 9 8 Most Carried 8 | 3 8 7 3 Average Carried 3 | 1 5 2 1 Final Capacity 10 | 8 8 10 5 Final Carried 7 | 2 7 2 2 Class Distribution -------------------- 84% | Mutant 6% | Scavenger-Tank 5% | Scavenger-Mutant 3% | Scavenger-Skirmisher Dominant Class ---------------- Mutant | -10/Materials Mutant | -9/Materials Scavenger-Tank | -8/Materials Resources | -11 -10 -9 -8 ----------- Run | Yrd Mat Mat Mat Matter Collected 531 | 238 142 151 . Remotely . | . . . . Salvage Created 690 | . 312 319 59 Parts 64 | . 29 32 3 Haulers Intercepted . | . . . . Recyclers Shooed 3 | . 1 2 . Parts Field Recycled . | . . . . Retrieved Matter . | . . . . Parts Self-Destructed . | . . . . Prevented . | . . . . Kills | -11 -10 -9 -8 ------- Run | Yrd Mat Mat Mat Combat Hostiles Destroyed 28 | . 13 14 1 Guns 28 | . 13 14 1 Classes Destroyed 3 | . 2 1 . Swarmer 20 | . 9 11 . Grunt 6 | . 4 1 1 Sentry 2 | . . 2 . Best Kill Streak 6 | . 6 4 1 Combat Bots Only 6 | . 6 4 1 Max Kills in Single Turn 2 | . 2 1 1 Gunslinging 1 | . 1 . . Exploded . | . . . . Melee . | . . . . Uniques/NPCs Destroyed . | . . . . Combat | -11 -10 -9 -8 -------- Run | Yrd Mat Mat Mat Hostile Shots Fired 313 | . 56 159 98 Missed 86 | . 12 46 28 Damage Taken 2497 | . 393 1018 1086 Core 771 | . 61 147 563 Absorbed by Shields . | . . . . Core Remaining (%) 79 | 100 75 63 . Volleys Fired 76 | . 25 39 12 Largest 3 | . 2 2 3 Hottest 60 | . 60 60 60 Shots Fired 154 | . 50 77 27 Gun 154 | . 50 77 27 Cannon . | . . . . Launcher . | . . . . Special . | . . . . Kinetic 124 | . 25 72 27 Thermal 30 | . 25 5 . Explosive . | . . . . Electromagnetic . | . . . . Robot Hit Streak 17 | . 8 17 9 Robot Miss Streak 4 | . 4 4 2 Penetration Max . | . . . . Secondary Targets 4 | . 2 2 . Max Gunslinging Chain 1 | . 1 1 . Shots Hit Robots 97 | . 30 49 18 Core Hits 48 | 1 19 22 6 Critical Kills . | . . . . Critical Parts Destroyed 1 | . . 1 . Critical Strikes 1 | . . 1 . Destroy 1 | . . 1 . Melee Attacks . | . . . . Impact . | . . . . Slashing . | . . . . Piercing . | . . . . Sneak Attacks . | . . . . Combat Hostiles . | . . . . Follow-up Attacks . | . . . . Damage Inflicted 1034 | 2 380 499 153 Guns 999 | . 376 470 153 Cannons . | . . . . Explosions . | . . . . Melee . | . . . . Ramming 35 | 2 4 29 . Kinetic 802 | . 199 450 153 Thermal 197 | . 177 20 . Explosive . | . . . . Electromagnetic . | . . . . Impact . | . . . . Slashing . | . . . . Piercing . | . . . . Highest Corruption . | . . . . Average Corruption . | . . . . Corruption Purged . | . . . . Corruption Blocked . | . . . . Overload Shots . | . . . . Overflow Damage . | . . . . Projectiles . | . . . . Explosions . | . . . . Melee . | . . . . Knockbacks . | . . . . Impact . | . . . . Kinetic . | . . . . Secondary . | . . . . Self-Inflicted Damage . | . . . . Shots . | . . . . Rammed . | . . . . Targets Rammed 12 | 1 2 9 . Kicked 12 | 1 2 9 . Crushed . | . . . . Highest Temperature 152 | . 33 24 152 Average Temperature 57 | . 16 5 96 Received Heat Transfer 855 | . 66 105 684 Siege Activations . | . . . . Robots Corrupted . | . . . . Combat Hostiles . | . . . . Parts Fried . | . . . . Impact Corruptions . | . . . . Robots Melted . | . . . . Combat Hostiles . | . . . . Parts Melted . | . . . . Heat Transferred 450 | . 400 50 . Parts Sabotaged . | . . . . Parts Stolen . | . . . . Parts Stripped . | . . . . Power Chain Reactions . | . . . . Alert | -11 -10 -9 -8 ------- Run | Yrd Mat Mat Mat Peak Influence 286 | . 196 286 155 Initial 105 | . . 46 105 Average 104 | . 79 152 111 Maximum Alert Level 1 | . . 1 . Low Security (%) 92 | 100 100 76 100 Level 1 7 | . . 23 . Level 2 . | . . . . Level 3 . | . . . . Level 4 . | . . . . Level 5 . | . . . . High Security . | . . . . Max Security . | . . . . Squads Dispatched 4 | . 2 1 1 Investigation 1 | . . 1 . Extermination . | . . . . Reinforcement 3 | . 2 . 1 Assault . | . . . . Garrison . | . . . . Intercept . | . . . . Searches Triggered . | . . . . Construction Impeded . | . . . . Haulers Reinforced . | . . . . Active Scanning Responses . | . . . . Cargo Convoy Interrupts . | . . . . Stealth | -11 -10 -9 -8 --------- Run | Yrd Mat Mat Mat Distress Signals 2 | . . 1 1 Communications Jammed . | . . . . Distress Signals . | . . . . Times Spotted 51 | . 19 26 6 Peak Tracking Total 6 | . 5 6 6 Tactical Retreats 4 | . . 4 . Traps | -11 -10 -9 -8 ------- Run | Yrd Mat Mat Mat Traps Triggered 2 | . 1 1 . Indirectly . | . . . . Trap Hack Attempts . | . . . . Triggered . | . . . . Disarmed . | . . . . Reprogrammed . | . . . . Reused . | . . . . Traps Extracted . | . . . . Installed . | . . . . Triggered . | . . . . Machines | -11 -10 -9 -8 ---------- Run | Yrd Mat Mat Mat Machines Disabled . | . . . . Max in Single Turn . | . . . . Machines Repaired . | . . . . Machines Dismantled . | . . . . Machines Sabotaged . | . . . . Overloaded Fab Kills . | . . . . Hacking | -11 -10 -9 -8 --------- Run | Yrd Mat Mat Mat Machines Accessed 1 | . . 1 . Terminals 1 | . . 1 . Fabricators . | . . . . Repair Stations . | . . . . Recycling Units . | . . . . Scanalyzers . | . . . . Garrison Access . | . . . . Total Hacks 3 | . . 3 . Successful . | . . . . Failed 3 | . . 3 . Catastrophic . | . . . . Database Lockouts . | . . . . Manual . | . . . . Terminals 3 | . . 3 . Fabricators . | . . . . Repair Stations . | . . . . Recycling Units . | . . . . Scanalyzers . | . . . . Garrison Access . | . . . . Terminal Hacks . | . . . . Fabricator Hacks . | . . . . Repair Station Hacks . | . . . . Recycling Unit Hacks . | . . . . Scanalyzer . | . . . . Garrison Access Hacks . | . . . . Unauthorized Hacks . | . . . . Terminals . | . . . . Fabricators . | . . . . Repair Stations . | . . . . Recycling Units . | . . . . Scanalyzers . | . . . . Garrison Access . | . . . . Data Cores Recovered . | . . . . Used . | . . . . Hacking Detections 1 | . . 1 . Full Trace Events 1 | . . 1 . Feedback Events . | . . . . Feedback Blocked . | . . . . Robot Schematics Acquired . | . . . . Robots Built . | . . . . Authchips . | . . . . Time . | . . . . Total Robot Build Rating . | . . . . Part Schematics Acquired . | . . . . Parts Built . | . . . . Authchips . | . . . . Time . | . . . . Total Part Build Rating . | . . . . Parts Repaired . | . . . . Time . | . . . . Parts Recycled . | . . . . Recycled Matter . | . . . . Retrieved Matter . | . . . . Retrieved Components . | . . . . Parts Scanalyzed . | . . . . Part Schematics Acquired . | . . . . Parts Damaged . | . . . . Bothacking | -11 -10 -9 -8 ------------ Run | Yrd Mat Mat Mat Used RIF Installer . | . . . . Robots Hacked . | . . . . Non-combat . | . . . . Combat . | . . . . Robot Hacks Applied . | . . . . Relay Couplers Released . | . . . . Fabnet Peak Effective % . | . . . . Robots Rewired . | . . . . Allies Hacked . | . . . . Hacks Repelled . | . . . . Allies | -11 -10 -9 -8 -------- Run | Yrd Mat Mat Mat Total Allies . | . . . . Largest Group . | . . . . Highest-Rated Group . | . . . . Highest-Rated Ally . | . . . . Total Orders . | . . . . Ally Attacks . | . . . . Total Damage . | . . . . Kills . | . . . . Allies Corrupted . | . . . . Allies Melted . | . . . . Intel | -11 -10 -9 -8 ------- Run | Yrd Mat Mat Mat Robot Analysis Total . | . . . . Derelict Logs Recovered . | . . . . Drone Launches . | . . . . Drone Recoveries . | . . . . Exploration | -11 -10 -9 -8 ------------- Run | Yrd Mat Mat Mat Turns Passed 1779 | 74 892 598 215 Spaces Moved 903 | 57 456 327 63 Core 10 | 9 . 1 . Treads . | . . . . Legs 893 | 48 456 326 63 Wheels . | . . . . Hover . | . . . . Flight . | . . . . Fastest Speed 50 | 50 120 120 190 Average Speed 136 | 108 120 142 251 Slowest Speed 400 | 120 120 400 260 Overloaded Moves . | . . . . Propulsion Burnouts . | . . . . Robots Hopped . | . . . . Cave-ins Triggered . | . . . . Exploration Rate (%) 28 | 4 78 25 7 Regions Visited 3 Branch Regions . Pre-discovered Areas . | . . . . Known Exits Taken . | . . . . Unknown Exits Taken 3 | 1 1 1 . Scrap Searched . | . . . . Spaces Dug . | . . . . Terrain Destroyed . | . . . . Melee . | . . . . Projectile . | . . . . AOE . | . . . . Terrain Rammed . | . . . . Walls Destroyed . | . . . . Machines Disabled . | . . . . Actions | -11 -10 -9 -8 --------- Run | Yrd Mat Mat Mat Total 1310 | 66 749 392 103 Wait 277 | . 251 5 21 Move 900 | 56 455 326 63 Hop . | . . . . Pick Up 15 | 3 7 3 2 Fast Attach 9 | 5 4 . . Attach 11 | 1 1 6 3 Detach 2 | . 1 . 1 Swap 4 | . 1 2 1 Drop 4 | . 2 2 . Fire 76 | . 25 39 12 Melee . | . . . . Ram . | . . . . Kick 12 | 1 2 9 . Crush . | . . . . Escape Stasis . | . . . . Rewire . | . . . . Trap . | . . . . Miscellaneous . | . . . . Route ------- -11/Scrapyard -10/Materials (discovered 3 exits: *Mat x2 / [*Min]) -9/Materials -8/Materials History --------- Turn | Location | Event 5 | -11/Scrapyard | Discovered new exit (range 16) 75 | -11/Scrapyard | Entered Materials 247 | -10/Materials | Discovered new exit (range 7) 314 | -10/Materials | Build established: Mutant 326 | -10/Materials | Discovered new exit (range 14) 675 | -10/Materials | Derelicts attacked the area 934 | -10/Materials | Discovered new exit (range 14) 967 | -10/Materials | Entered another Materials area 967 | -9/Materials | Evolved 2 slots: Propulsion x1, Utility x1 1454 | -9/Materials | Lost 5 parts (1p3n1w) 1502 | -9/Materials | Discovered new exit (range 16) 1565 | -9/Materials | Entered another Materials area 1565 | -8/Materials | Evolved 2 slots: Propulsion x1, Weapon x1 1769 | -8/Materials | Core integrity fell below 50% 1776 | -8/Materials | Core integrity fell below 20% 1780 | -8/Materials | Destroyed by G-47 Trooper with Particle Gun Last Messages --------------- TERMINAL." ALERT: Hostiles spotted, dispatching reinforcements to Terminal M008. K-01 Serf collects debris. W-25 Informer sends out distress signal. Atomic Centrifuge disabled. G-47 Trooper destroyed. Aluminum Leg destroyed. Lgt. Assault Rifle destroyed. R-06 Scavenger collects Lgt. Nuclear Core. Ion Engine destroyed. Critical hit (Burn: +37). Lgt. Assault Rifle destroyed. R-06 Scavenger collects Aluminum Leg. R-06 Scavenger collects Particle Gun. Lgt. Assault Rifle destroyed. Structural Scanner destroyed. Imp. Light Armor Plating destroyed. Ion Engine destroyed. Critical hit (Burn: +37). Map ----- +----------------------------------------------------+ | ???????????????????????????????????????????????? | | ???????????????????????????????????????????????? | | ???????????????????????????????????????????????? | | ???????????????????????????????????????????????? | | ???????????????????????????????????????????????? | | ???????????????????????????????????????????????? | | ???????????????????????????????????????????????? | | ???????????????????????????????????????????????? | | ???????????????????????????????????????????????? | | ???????????????????????????????????????????????? | | ???????????????????????????????????????????????? | | ???????????????????????????????????????????????? | | ???????????????????????????????????????????????? | | ???????????????????????????????????????????????? | | ???????????????????????????????????????????????? | | ???????????????????????????????????????????????? | | ???????????????????????????????????????????????? | | ???????????????????????????????????????????????? | | ???????????????????????????????????????????????? | | ??????????????????? ###########????????????????? | | ??????????????????? ################???????????? | | ??????????????????? # T #######???????????? | | ??????????????????? # # ##???????????? | | ??????????????????? # ! # [ ##???????????? | | ??????????????????? # # ##???????????? | | ??????????????????? # %@ # [ ##???????????? | | ??????????????? # ? # g # ##???????????? | | ??????????????? + + g g# ##???????????? | | ??????????????? # # """ g/ ##???????????? | | ?????????????? # ? # # ##???????????? | | ??????????????### ? ########## ##########???? | | ?????????????? # ##########+############???? | | ?????????????? # ##???? | | ?????????????? + T ##???? | | ?????????????? # ###??? | | ?????????????? # ########/########+######??? | | ?????????????? ## ??###### ## ##??? | | ???????????????## ?????? # ## T ##??? | | ???????????????????????? # ] ## ##??? | | ????????????????????????"# ] | ## ##??? | | ????????????????????????"# *] ## ##??? | | ????????????????????????"# ## [ ##??? | | ???????????????????????? # ##########??? | | ????????????????????????## ##########??? | | ????????????????????????#############??????????? | | ???????????????????????? ########??????????? | | ???????????????????????????????????????????????? | | ???????????????????????????????????????????????? | | ???????????????????????????????????????????????? | | ???????????????????????????????????????????????? | +----------------------------------------------------+ Best States ------------- Heat Dissipation 31 Energy Generation 10 Energy Capacity 250 Matter Stores 300 Matter Capacity 300 Sight Range 16 Terrain Scan Density 10 Armor Coverage 150 Evasion (%) 55 Item Schematics ----------------- None Robot Schematics ------------------ None Fabricated ------------ Nothing Alien Tech Used ----------------- None Achievements -------------- None Challenges ------------ None Game ------ Seed BiomechanicalWeaponsSink Manual? 0 Play Time 00:16:12 Cumulative 11.7 hours Start 2025.04.26 @ 17:05:18 End 2025.04.26 @ 17:19:19 Sessions 1 Manual Loads 0 Difficulty Rogue Special Mode None Game No. 13 Rogue 2 Adventurer 11 Explorer 0 Win Type - Total 0 Types 0/0/0/0/0/0/0/0/0 Lore% 4 Gallery% 10 Achievement% 13 Wizard Run 0 Options --------- Layout 1 ASCII 0 Keyboard 1 Movement Vi Keybinds 0 Fullscreen 2 Font 24/Smallcaps Map View 50x35 Zoom Use 0% Tactical HUD 0 Map Filters NONE Filters NONE Steam 1 RUN: 467695ce-4548-4137-b987-50295a16bb74